lending/lending_fUSD_20240401
["ID","MTS","AMOUNT","RATE_DAILY","PERIOD"]
[321189091,1711957831731,-408.48464338,0.00037707,4]
[321189092,1711957831742,-156.59183349,0.00037708,2]
[321189093,1711957831751,-3204.3543578,0.00037807,2]
[321189094,1711957831761,-965.36561789,0.00037808,4]
[321189095,1711957831770,-156.3,0.00037808,2]
[321189096,1711957831779,-156.59183347,0.00039781,2]
[321189097,1711957831789,-156.59183347,0.00041854,2]
[321189098,1711957831798,-156.59183347,0.00043926,2]
[321189099,1711957831807,-156.59183347,0.00045999,2]
[321189100,1711957831817,-467.26438692,0.00047724,4]
[321189101,1711957831826,-363.86001547,0.00047725,4]
[321189102,1711957831835,-156.59183347,0.00048072,2]
[321189103,1711957831844,-156.59183347,0.00050145,2]
[321189104,1711957831853,-156.2,0.00051977,2]
[321189105,1711957831863,-499.99,0.00051977,2]
[321189106,1711957831872,-156.59183347,0.00052217,2]
[321189107,1711957831881,-402.42,0.0005348,2]
[321189108,1711957831890,-156.59183347,0.0005429,2]
[321189109,1711957831899,-152.0,0.00054584,3]
[321189110,1711957831908,-589.37,0.00055263,2]
[321189111,1711957831918,-500.0,0.00055308,30]
[321189112,1711957831927,-500.0,0.00055337,2]
[321189113,1711957831937,-1302.78,0.0005536,2]
[321189114,1711957831946,-157.5,0.00055367,120]
[321189115,1711957831955,-500.0,0.00055412,2]
[321189116,1711957831965,-497.52,0.0005551,120]
[321189117,1711957831975,-402.42,0.00055744,2]
[321189118,1711957831984,-260.18428435,0.00056068,2]
[321189119,1711957831994,-150.69,0.00056118,120]
[321189120,1711957832004,-250.0,0.00056341,120]
[321189121,1711957832015,-20752.97932648,0.0005636,60]
[321189122,1711957832024,-156.59183347,0.00056363,2]
[321189123,1711957832034,-250.0,0.000564,120]
[321189124,1711957832044,-23900.0,0.00056418,2]
[321189125,1711957832054,-804.47609506,0.00056427,120]
[321189126,1711957832064,-468.87,0.00056569,120]
[321189127,1711957832073,-179.0,0.00056621,2]
[321189128,1711957832083,-549.9,0.00056927,30]
[321189129,1711957832092,-259.99,0.00057,120]
[321189130,1711957832102,-6999.993,0.00057155,30]
[321189131,1711957832111,-167.1,0.00057272,2]
[321189132,1711957832122,-156.3,0.00057644,2]
[321189133,1711957832136,-804.47609504,0.00057829,120]
[321189134,1711957832146,-260.0,0.00058,120]
[321189135,1711957832155,-589.37,0.00058002,2]
[321189136,1711957832165,-402.42,0.00058008,2]
[321189137,1711957832174,-640.19,0.00058038,6]
[321189138,1711957832183,-175.03,0.00058153,2]
[321189139,1711957832192,-2105.0,0.00058338,117]
[321189140,1711957832201,-1139.0,0.00058348,120]
[321189141,1711957832213,-156.59183347,0.00058436,2]
[321189142,1711957832223,-200.0,0.00058559,2]
[321189143,1711957832232,-1103.38,0.00058752,120]
[321189144,1711957832242,-260.0,0.00059,120]
[321189145,1711957832252,-1000.0,0.00059049,120]
[321189146,1711957832264,-1532.0212,0.00059143,2]
[321189147,1711957832274,-360.94328831,0.00059181,40]
[321189148,1711957832284,-8971.49818232,0.0005923,2]
[321189149,1711957832295,-1962.22680233,0.0005923,2]
[321189150,1711957832304,-464.87914214,0.0005923,30]
[321189151,1711957832314,-804.47609504,0.0005923,120]
[321189152,1711957832324,-174.79,0.00059233,10]
[321189153,1711957832334,-333.32,0.00059233,10]
[321189154,1711957832344,-277.77,0.00059233,10]
[321189155,1711957832354,-85125.11428468,0.00059243,2]
[321189156,1711957832366,-314.80022432,0.00059243,2]
[321189157,1711957832379,-1672.77186781,0.00059243,2]
[321189158,1711957832407,-255.97559429,0.00059243,2]
[321189159,1711957832632,-16063.58494237,0.00059243,2]
[321189160,1711957837995,-231.47,0.00059233,10]
[321189163,1711957838151,-852.95029105,0.00059243,2]
[321189199,1711957839782,-617.793995,0.00059243,2]
[321189200,1711957839886,-9602.78100048,0.00059243,2]
[321189201,1711957839897,-3368.5161918,0.0005933,2]
[321189202,1711957839907,-464.87914214,0.00059558,30]
[321189203,1711957839917,-500.0,0.0005975,90]
[321189204,1711957839927,-1200.0,0.0005975,90]
[321189205,1711957839936,-500.0,0.0005975,90]
[321189206,1711957839945,-500.0,0.0005975,90]
[321189207,1711957839955,-152.0,0.0005977,4]
[321189208,1711957839963,-464.87914214,0.00059886,30]
[321189209,1711957839974,-518.06512933,0.0006,90]
[321189210,1711957839983,-158.0,0.0006,2]
[321189211,1711957839994,-1495.19701797,0.0006,7]
[321189212,1711957840005,-150.0,0.0006,40]
[321189213,1711957840016,-8905.49848806,0.0006,120]
[321189214,1711957840025,-935.2073927,0.0006,30]
[321189215,1711957840034,-14706.72928308,0.0006,120]
[321189216,1711957840043,-413.0,0.0006,96]
[321189217,1711957840052,-500.0,0.00060023,120]
[321189218,1711957840062,-663.14,0.00060023,120]
[321189219,1711957840071,-500.0,0.00060023,120]
[321189220,1711957840080,-917.97,0.00060023,120]
[321189221,1711957840089,-500.0,0.00060023,120]
[321189222,1711957840099,-500.0,0.00060023,120]
[321189223,1711957840108,-500.0,0.00060023,120]
[321189224,1711957840118,-198.67052487,0.00060023,120]
[321189225,1711957840127,-343.22707843,0.00060023,120]
[321189251,1711957842735,-408.48464338,0.00059999,4]
[321189252,1711957842745,-156.77292157,0.00060023,120]
[321189253,1711957842755,-530.45,0.00060023,120]
[321189254,1711957842764,-1200.0,0.00060024,90]
[321189255,1711957842775,-500.0,0.00060024,90]
[321189256,1711957842784,-500.0,0.00060037,120]
[321189257,1711957842793,-500.0,0.00060037,120]
[321189258,1711957842803,-500.0,0.00060037,120]
[321189259,1711957842813,-263.42193876,0.00060037,120]
[321189260,1711957842822,-1551.16,0.00060037,120]
[321189261,1711957842833,-500.0,0.00060037,120]
[321189262,1711957842842,-500.0,0.00060037,120]
[321189263,1711957842852,-500.0,0.00060037,120]
[321189264,1711957842861,-500.0,0.00060037,120]
[321189265,1711957842871,-500.0,0.00060037,120]
[321189266,1711957842880,-500.0,0.00060037,120]
[321189267,1711957842890,-500.0,0.00060037,120]
[321189268,1711957842899,-500.0,0.00060037,120]
[321189269,1711957842909,-946.99,0.00060037,120]
[321189270,1711957842919,-500.0,0.00060037,120]
[321189271,1711957842929,-900.46,0.00060037,120]
[321189272,1711957842939,-500.0,0.00060037,120]
[321189273,1711957842949,-500.0,0.00060037,120]
[321189274,1711957842960,-1221.64,0.00060037,120]
[321189275,1711957842969,-500.0,0.00060037,120]
[321189276,1711957842978,-500.0,0.00060037,21]
[321189277,1711957842988,-1454.09,0.00060037,120]
[321189278,1711957842998,-701.26,0.00060037,120]
[321189279,1711957843008,-500.0,0.00060037,120]
[321189280,1711957843018,-500.0,0.00060037,120]
[321189281,1711957843028,-500.0,0.00060037,120]
[321189282,1711957843037,-500.0,0.00060037,120]
[321189283,1711957843046,-500.0,0.00060037,120]
[321189284,1711957843056,-500.0,0.00060037,120]
[321189285,1711957843066,-500.0,0.00060037,120]
[321189286,1711957843075,-500.0,0.00060037,120]
[321189287,1711957843085,-500.0,0.00060037,120]
[321189288,1711957843094,-831.58243374,0.00060037,120]
[321189289,1711957843107,-545.06037335,0.00060037,120]
[321189290,1711957843117,-500.0,0.00060037,120]
[321189291,1711957843126,-500.0,0.00060037,120]
[321189292,1711957843139,-500.0,0.00060037,120]
[321189293,1711957843148,-631.57,0.00060037,120]
[321189294,1711957843159,-2339.88663993,0.00060038,2]
[321189295,1711957843251,-614.5285816,0.00060038,2]
[321189301,1711957845721,-1915.38535822,0.00060038,2]
[321189302,1711957845779,-698.99965706,0.00060038,2]
[321189303,1711957845891,-425.78913484,0.00060038,2]
[321189304,1711957845902,-1777.13468457,0.00060038,2]
[321189305,1711957846057,-719.84129831,0.00060038,2]
[321189307,1711957870173,55633.5768332,0.00025,2]
[321189308,1711957870197,5363.5768332,0.00025,2]
[321189309,1711957870220,5363.5768332,0.00025,2]
[321189310,1711957870245,53363.5768332,0.00025,2]
[321189311,1711957870272,29419.472,0.00025,2]
[321189312,1711957870308,2735585.35863312,0.00025,2]
[321189319,1711958039305,754866.36815378,0.00025,2]
[321189332,1711958196069,-6069.74125573,0.0004,7]
[321189333,1711958204582,-499.5402372,0.00035,5]
[321189365,1711959031903,-159.04134173,0.00034889,2]
[321189366,1711959031912,-1607.22320105,0.00034986,2]
[321189367,1711959031962,-1597.13115675,0.00034986,2]
[321189368,1711959031972,-2000.0,0.00034987,2]
[321189369,1711959031981,-1365.36785599,0.00035,4]
[321189370,1711959031991,-1330.62057687,0.00035,4]
[321189371,1711959032000,-153.81127808,0.00037627,7]
[321189372,1711959032010,-156.24,0.00037808,2]
[321189373,1711959032019,-156.33,0.00037808,2]
[321189374,1711959032029,-207.9041,0.00039799,2]
[321189375,1711959032038,-953.80798611,0.00041191,4]
[321189376,1711959032048,-150.0,0.000433,5]
[321189377,1711959032057,-3435.24301575,0.00043301,7]
[321189378,1711959032066,-15127.15572661,0.00043301,4]
[321189379,1711959032075,-357.08,0.00043301,2]
[321189380,1711959032085,-159.04134173,0.00047718,2]
[321189381,1711959032094,-150.0,0.00049623,120]
[321189382,1711959032226,-151.032613,0.00049698,77]
[321189383,1711959032275,-156.24,0.00050205,2]
[321189384,1711959032285,-2001.2336442,0.00051,50]
[321189385,1711959032294,-150.0,0.00051642,120]
[321189386,1711959032304,-155.44502111,0.00053751,60]
[321189387,1711959032313,-158.73197678,0.00053989,60]
[321189388,1711959032323,-389.75,0.00054361,2]
[321189389,1711959032332,-150.0,0.00054638,120]
[321189390,1711959032341,-150.0,0.00055155,120]
[321189391,1711959032351,-274.95,0.00056034,30]
[321189392,1711959032360,-250.0,0.00056064,120]
[321189393,1711959032370,-580.95,0.0005611,120]
[321189394,1711959032379,-485.94,0.0005611,2]
[321189395,1711959032388,-1000.0,0.00056217,120]
[321189396,1711959032397,-250.0,0.00056228,112]
[321189397,1711959032406,-195.78,0.00056228,2]
[321189398,1711959032417,-11011.01,0.00056241,2]
[321189399,1711959032426,-156.3,0.0005637,120]
[321189400,1711959032435,-150.69,0.00056403,120]
[321189401,1711959032445,-2161.0,0.00056413,117]
[321189402,1711959032454,-389.75,0.00056625,2]
[321189403,1711959032464,-250.0,0.00056686,120]
[321189404,1711959032473,-13668.99,0.00056884,120]
[321189405,1711959032482,-157.26535765,0.00057169,120]
[321189406,1711959032493,-1601.38,0.00057419,120]
[321189407,1711959032504,-2999.99999901,0.000575,120]
[321189408,1711959032513,-156.17,0.0005783,120]
[321189409,1711959032522,-10000.0,0.00058,120]
[321189410,1711959032532,-165.61,0.00058243,2]
[321189411,1711959032542,-10000.0,0.000585,120]
[321189412,1711959032551,-716.111304,0.00058823,30]
[321189413,1711959032560,-389.75,0.00058888,2]
[321189414,1711959032569,-500.0,0.0005889,90]
[321189415,1711959032579,-1000.0,0.0005889,90]
[321189416,1711959032589,-195.78,0.00058968,2]
[321189417,1711959032598,-1403.07220086,0.00058968,18]
[321189418,1711959032608,-643.01,0.0005899,10]
[321189419,1711959032617,-10000.0,0.00059,120]
[321189420,1711959032627,-11925.21641674,0.00059,50]
[321189421,1711959032636,-1000.0,0.00059,20]
[321189422,1711959032645,-1000.0,0.00059164,90]
[321189423,1711959032654,-500.0,0.00059438,90]
[321189424,1711959032664,-716.111304,0.00059558,30]
[321189425,1711959032673,-158.73197678,0.0005962,120]
[321189426,1711959032682,-1000.0,0.00059712,90]
[321189427,1711959032691,-7225.19182868,0.00059899,2]
[321189428,1711959032700,-185.95165688,0.00059899,30]
[321189429,1711959032710,-185.95165685,0.00059899,30]
[321189430,1711959032719,-185.95165685,0.000599,30]
[321189431,1711959032728,-185.95165685,0.000599,30]
[321189432,1711959032737,-341.39313801,0.000599,2]
[321189433,1711959032746,-185.95165685,0.000599,30]
[321189434,1711959032755,-164.88557598,0.000599,14]
[321189435,1711959032764,-500.0,0.00059986,90]
[321189436,1711959032773,-193.15721232,0.0005999,7]
[321189437,1711959032782,-150.72,0.0005999,120]
[321189438,1711959032792,-160.15,0.0005999,30]
[321189439,1711959032801,-160.15,0.0005999,30]
[321189440,1711959032810,-773.16801295,0.00059997,4]
[321189441,1711959032819,-408.48464338,0.00059997,4]
[321189442,1711959032828,-1352.07028018,0.00059998,4]
[321189443,1711959032837,-500.0,0.00059999,120]
[321189444,1711959032847,-518.25910442,0.00059999,120]
[321189445,1711959032856,-500.0,0.00059999,120]
[321189446,1711959032865,-500.0,0.00059999,120]
[321189447,1711959032874,-500.0,0.00059999,120]
[321189448,1711959032883,-500.0,0.00059999,120]
[321189449,1711959032893,-153.37440798,0.00059999,120]
[321189450,1711959032902,-500.0,0.00059999,120]
[321189451,1711959032911,-500.0,0.00059999,120]
[321189452,1711959032920,-500.0,0.00059999,120]
[321189453,1711959032929,-500.0,0.00059999,120]
[321189454,1711959032938,-500.0,0.00059999,120]
[321189455,1711959032948,-500.0,0.00059999,120]
[321189456,1711959032957,-506.07,0.00059999,120]
[321189457,1711959032967,-500.0,0.00059999,120]
[321189458,1711959032976,-500.0,0.00059999,120]
[321189459,1711959032987,-500.0,0.00059999,120]
[321189460,1711959032996,-500.0,0.00059999,120]
[321189461,1711959033006,-516.82665783,0.00059999,60]
[321189462,1711959033016,-586.3,0.00059999,120]
[321189463,1711959033026,-229.23,0.00059999,120]
[321189464,1711959033036,-500.0,0.00059999,120]
[321189465,1711959033049,-500.0,0.00059999,120]
[321189466,1711959033058,-500.0,0.00059999,120]
[321189467,1711959033067,-500.0,0.00059999,120]
[321189468,1711959033079,-500.0,0.00059999,120]
[321189469,1711959033089,-500.0,0.00059999,120]
[321189470,1711959033098,-500.0,0.00059999,120]
[321189471,1711959033107,-500.0,0.00059999,120]
[321189472,1711959033116,-500.0,0.00059999,120]
[321189473,1711959033125,-500.0,0.00059999,120]
[321189474,1711959033134,-500.0,0.00059999,120]
[321189475,1711959033144,-574.38,0.00059999,120]
[321189476,1711959033153,-453.92806124,0.00059999,120]
[321189477,1711959033163,-562.59,0.00059999,120]
[321189478,1711959033173,-500.0,0.00059999,120]
[321189479,1711959033184,-1486.53,0.00059999,120]
[321189480,1711959033196,-500.0,0.00059999,120]
[321189481,1711959033206,-500.0,0.00059999,120]
[321189482,1711959033216,-500.0,0.00059999,120]
[321189483,1711959033225,-1553.16,0.00059999,120]
[321189484,1711959033235,-500.0,0.00059999,120]
[321189485,1711959033244,-500.0,0.00059999,120]
[321189486,1711959033254,-500.0,0.00059999,120]
[321189487,1711959033264,-500.0,0.00059999,120]
[321189488,1711959033274,-500.0,0.00059999,120]
[321189489,1711959033283,-500.0,0.00059999,120]
[321189490,1711959033292,-500.0,0.00059999,120]
[321189491,1711959033306,-500.0,0.00059999,120]
[321189492,1711959033315,-625.23979562,0.00059999,120]
[321189493,1711959033325,-635.51,0.00059999,120]
[321189494,1711959033334,-358.19006246,0.00059999,120]
[321189495,1711959033346,-141.80993754,0.00059999,120]
[321189496,1711959033355,-500.0,0.00059999,120]
[321189497,1711959033365,-907.54,0.00059999,120]
[321189498,1711959033374,-500.0,0.00059999,120]
[321189499,1711959033384,-1223.86,0.00059999,120]
[321189500,1711959033394,-205.59006246,0.00059999,120]
[321189501,1711959033411,-657.35993754,0.00059999,120]
[321189502,1711959033421,-500.0,0.00059999,120]
[321189503,1711959033430,-550.33235838,0.00059999,120]
[321189504,1711959033441,-540.2363085,0.00059999,120]
[321189505,1711959033452,-186.90133312,0.00059999,120]
[321189506,1711959033462,-500.0,0.00059999,120]
[321189507,1711959033471,-391.08766688,0.00059999,120]
[321189520,1711959037866,-500.0,0.0005889,90]
[321189521,1711959037876,-108.91233312,0.00059999,120]
[321189522,1711959037885,-199.83797465,0.00059999,120]
[321189523,1711959037898,-679.88202535,0.00059999,120]
[321189524,1711959037907,-61.3952142,0.00059999,120]
[321189525,1711959037919,-420.8888349,0.00059999,120]
[321189526,1711959037930,-17.7159509,0.00059999,120]
[321189527,1711959037940,-280.81148617,0.00059999,120]
[321189528,1711959037951,-71.84786551,0.00059999,120]
[321189529,1711959037961,-290.84315961,0.00059999,120]
[321189530,1711959037972,-209.15684039,0.00059999,120]
[321189531,1711959037981,-500.0,0.00059999,120]
[321189532,1711959037991,-500.0,0.00059999,120]
[321189533,1711959038001,-500.0,0.00059999,21]
[321189534,1711959038010,-500.0,0.00059999,120]
[321189535,1711959038019,-500.0,0.00059999,120]
[321189536,1711959038029,-500.0,0.00059999,120]
[321189537,1711959038038,-1298.20608794,0.00059999,120]
[321189538,1711959038051,-95.29391206,0.00059999,120]
[321189539,1711959038060,-672.04,0.00059999,120]
[321189540,1711959038069,-606.99,0.00059999,120]
[321189541,1711959038079,-498.13055669,0.00059999,120]
[321189542,1711959038090,-1.86944331,0.00059999,120]
[321189543,1711959038100,-500.0,0.00059999,120]
[321189544,1711959038109,-233.32039213,0.00059999,120]
[321189545,1711959038120,-266.67960787,0.00059999,120]
[321189546,1711959038129,-500.0,0.00059999,120]
[321189547,1711959038138,-500.0,0.00059999,120]
[321189548,1711959038147,-279.82353442,0.00059999,120]
[321189549,1711959038159,-220.17646558,0.00059999,120]
[321189550,1711959038168,-500.0,0.00059999,120]
[321189551,1711959038178,-508.35,0.00059999,120]
[321189552,1711959038187,-175.61432471,0.00059999,120]
[321189553,1711959038196,-500.0,0.00059999,120]
[321189554,1711959038205,-500.0,0.00059999,120]
[321189555,1711959038215,-574.77705443,0.00059999,120]
[321189556,1711959038224,-500.0,0.00059999,120]
[321189557,1711959038234,-500.0,0.00059999,120]
[321189558,1711959038243,-500.0,0.00059999,120]
[321189559,1711959038253,-20826.55427212,0.0006,120]
[321189560,1711959038262,-150.28,0.0006,40]
[321189561,1711959038271,-3709.31487621,0.0006,60]
[321189562,1711959038287,-9090.25,0.0006,60]
[321189563,1711959038300,-20386.09412125,0.0006,60]
[321189564,1711959038316,-758.11221771,0.0006,60]
[321189565,1711959038328,-1981.1914489,0.0006,60]
[321189631,1711959039931,-500.0,0.00059164,90]
[321189632,1711959039943,-205.72,0.0005999,10]
[321189633,1711959039957,-308.65,0.0005999,10]
[321189634,1711959039968,-3193.31,0.0006,60]
[321189641,1711959042925,-500.0,0.00059438,90]
[321189642,1711959042936,-444.58478271,0.00059986,90]
[321189644,1711959043163,-55.41521729,0.00059986,90]
[321189645,1711959043175,-243.47815862,0.00059999,120]
[321189646,1711959043188,-256.52184138,0.00059999,120]
[321189647,1711959043198,-2769.70872261,0.0006,60]
[321189648,1711959043221,-2268.793606,0.0006,60]
[321189649,1711959043340,-623.13571047,0.0006,60]
[321189655,1711959043502,-23166.31193745,0.0006,60]
[321189656,1711959043564,-1626.54921157,0.0006,60]
[321189681,1711959045982,-684.00580321,0.00059998,2]
[321189682,1711959045992,-644.64,0.00059999,120]
[321189683,1711959046003,-2028.2807432,0.0006,60]
[321189684,1711959046017,-346.9297911,0.0006,60]
[321189717,1711960232233,-155.0,0.00032999,4]
[321189718,1711960232242,-350.0,0.00033,3]
[321189719,1711960232252,-426.42497301,0.00037231,2]
[321189720,1711960232265,-335.61582174,0.00037231,2]
[321189721,1711960232277,-2442.31356305,0.00037231,2]
[321189722,1711960232287,-164.24834811,0.00037232,2]
[321189723,1711960232296,-156.23,0.00037808,2]
[321189724,1711960232305,-156.21,0.00037808,2]
[321189725,1711960232314,-164.24834808,0.00043034,2]
[321189726,1711960232324,-156.23,0.00047726,2]
[321189727,1711960232334,-164.24834808,0.00048835,2]
[321189728,1711960232344,-151.0,0.0005,120]
[321189729,1711960232354,-420.87,0.0005,2]
[321189730,1711960232364,-3351.84,0.0005,2]
[321189731,1711960232373,-164.24834808,0.00054637,2]
[321189732,1711960232382,-420.43,0.00056001,2]
[321189733,1711960232392,-282.25,0.00057378,30]
[321189734,1711960232401,-67.5215693,0.00057422,120]
[321189735,1711960232412,-88.6484307,0.00057422,120]
[321189736,1711960232422,-153.7,0.00057425,120]
[321189737,1711960232431,-451.0,0.000575,13]
[321189738,1711960232440,-2032.6,0.00057538,120]
[321189739,1711960232450,-815.38936929,0.00057592,2]
[321189740,1711960232461,-15.50063071,0.00057592,2]
[321189741,1711960232471,-800.0,0.00057604,120]
[321189742,1711960232481,-156.23,0.00057644,2]
[321189743,1711960232491,-156.21,0.00057644,2]
[321189744,1711960232500,-4559.58,0.00057691,30]
[321189745,1711960232510,-250.0,0.00057702,120]
[321189746,1711960232521,-250.0,0.00057713,120]
[321189748,1711960232531,-1477.21,0.00057827,6]
[321189750,1711960232540,-23890.0,0.00057854,2]
[321189752,1711960232549,-1388.25,0.00057871,2]
[321189754,1711960232559,-1183.5,0.00057892,2]
[321189756,1711960232568,-716.87,0.0005791,2]
[321189758,1711960232577,-156.3,0.00057984,120]
[321189760,1711960232587,-381.42,0.00057986,2]
[321189762,1711960232596,-484.12,0.00058021,120]
[321189764,1711960232605,-500.0,0.00058029,120]
[321189765,1711960232614,-1859.86,0.0005804,2]
[321189766,1711960232623,-572.67925793,0.00058071,120]
[321189767,1711960232632,-154.63,0.00058171,2]
[321189768,1711960232642,-2314.83,0.000582,2]
[321189769,1711960232651,-420.43,0.00058265,2]
[321189770,1711960232660,-200.0,0.00058269,120]
[321189771,1711960232669,-567.0,0.000584,120]
[321189772,1711960232678,-1648.193,0.00058548,120]
[321189773,1711960232687,-2449.245,0.00058548,120]
[321189774,1711960232695,-151.865,0.00058548,120]
[321189775,1711960232704,-217.0,0.00058548,2]
[321189776,1711960232714,-152.043,0.00058548,120]
[321189777,1711960232723,-5741.991,0.00058548,120]
[321189778,1711960232732,-324.438,0.00058548,120]
[321189779,1711960232742,-4449.40959284,0.00058548,120]
[321189780,1711960232754,-384.72640716,0.00058548,120]
[321189781,1711960232763,-2843.68152565,0.00058548,120]
[321189782,1711960232775,-502.76447435,0.00058548,120]
[321189783,1711960232784,-459.0,0.00058548,120]
[321189784,1711960232793,-1287.45074438,0.00058548,120]
[321189799,1711960238463,-1136.54925562,0.00058548,120]
[321189800,1711960238473,-1186.351,0.00058548,120]
[321189801,1711960238494,-963.0,0.00058548,120]
[321189802,1711960238515,-800.0,0.0005889,90]
[321189803,1711960238526,-504.53499359,0.00058942,5]
[321189805,1711960238535,-572.67925791,0.00058985,120]
[321189807,1711960238545,-1199.69633393,0.00059,120]
[321189809,1711960238554,-1333.33256537,0.00059,18]
[321189811,1711960238564,-800.0,0.00059164,90]
[321189813,1711960238574,-800.0,0.00059438,90]
[321189815,1711960238583,-10000.0,0.000595,120]
[321189817,1711960238593,-250.0,0.000595,120]
[321189819,1711960238602,-1229.61236308,0.00059888,120]
[321189821,1711960238611,-504.53499359,0.00059899,5]
[321189823,1711960238620,-1766.00412207,0.00059899,2]
[321189825,1711960238630,-572.67925791,0.00059899,120]
[321189827,1711960238639,-341.39313801,0.000599,2]
[321189829,1711960238648,-193.15721232,0.00059977,7]
[321189832,1711960238658,-513.49420421,0.0005998,120]
[321189833,1711960238667,-1899.082097,0.0005998,30]
[321189837,1711960238825,-800.0,0.00059986,90]
[321189838,1711960238851,-355.70522861,0.00059987,120]
[321189850,1711960242082,-297.51792665,0.00059987,120]
[321189851,1711960242096,-1772.32000042,0.00059987,120]
[321189881,1711960243284,-23166.31193745,0.00059987,120]
[321189927,1711961232916,200.61244347,0.00028855,2]
[321189930,1711961257438,20095.23517822,0.00028855,2]
[321189931,1711961274204,14906.14559598,0.00028855,2]
[321189933,1711961312055,23466.66346958,0.00028855,2]
[321189968,1711961432282,-350.0,0.00033,3]
[321189970,1711961432291,-149.01612085,0.00034995,2]
[321189976,1711961432346,-3055.33823695,0.00034995,2]
[321189978,1711961432355,-2150.0,0.00034996,2]
[321189980,1711961432365,-400.0,0.00035,3]
[321189982,1711961432374,-164.24834808,0.00036926,2]
[321189984,1711961432384,-874.76749402,0.00036927,2]
[321189989,1711961432515,-5141.10710598,0.00036927,2]
[321189990,1711961432525,-741.2123,0.00037031,2]
[321189991,1711961432535,-156.25,0.00037808,2]
[321189992,1711961432544,-156.25,0.00037808,2]
[321189993,1711961432553,-156.33,0.00037808,2]
[321189994,1711961432566,-153.75967967,0.00038981,7]
[321189995,1711961432576,-879.81099971,0.00039,2]
[321189996,1711961432588,-400.0,0.0004,2]
[321189997,1711961432598,-9986.99320012,0.0004,14]
[321189998,1711961432610,-13.00679988,0.0004,14]
[321189999,1711961432620,-3739.74,0.0004,2]
[321190000,1711961432629,-192.55565899,0.0004,2]
[321190001,1711961432640,-705.0,0.000432,30]
[321190002,1711961432650,-10000.0,0.00045,30]
[321190003,1711961432659,-157.17,0.000463,5]
[321190004,1711961432668,-9021.22431436,0.0005,30]
[321190051,1711961438659,-703.1,0.0005,30]
[321190052,1711961438718,-275.67568564,0.0005,30]
[321190053,1711961438728,-1.46031436,0.00050205,2]
[321190054,1711961438776,-154.78968564,0.00050205,2]
[321190055,1711961438786,-499.99,0.000511,2]
[321190056,1711961438795,-157.17,0.000511,6]
[321190057,1711961438804,-413.51,0.00053117,2]
[321190058,1711961438813,-156.25,0.00054338,2]
[321190059,1711961438822,-246.54725579,0.00054612,120]
[321190060,1711961438832,-200.0,0.00054712,2]
[321190061,1711961438842,-375.25,0.00054712,2]
[321190062,1711961438851,-7982.24,0.00054798,2]
[321190063,1711961438860,-305.82564552,0.00054995,120]
[321190064,1711961438869,-500.30705752,0.00055,120]
[321190065,1711961438879,-156.3,0.00055195,120]
[321190066,1711961438889,-413.51,0.0005538,2]
[321190068,1711961438898,-859.57814569,0.00055591,11]
[321190070,1711961438907,-152.0,0.00055881,3]
[321190071,1711961438916,-157.17,0.000559,8]
[321190072,1711961438927,-640.0,0.00056264,120]
[321190073,1711961438935,-155.21,0.00056313,120]
[321190074,1711961438945,-1693.83,0.00056327,120]
[321190075,1711961438954,-250.0,0.00056429,120]
[321190076,1711961438964,-250.0,0.00056615,120]
[321190077,1711961438972,-246.54725577,0.00057206,120]